bitfinex-derivatives/quotes_BTCF0:USTF0_20250822
["timestamp","ask_amount","ask_price","bid_price","bid_amount"]
[1755845820930,0.34580392,113150.0,113140.0,0.12073]
[1755845821127,0.07686,113150.0,113140.0,0.12073]
[1755845821435,0.06686,113150.0,113140.0,0.91248838]
[1755845821830,0.07686,113150.0,113140.0,0.91248838]
[1755845822332,0.06686,113150.0,113140.0,0.91248838]
[1755845822538,0.07686,113150.0,113140.0,0.91248838]
[1755845823428,0.07686,113150.0,113140.0,0.54514226]
[1755845823635,0.35580392,113150.0,113140.0,1.35842226]
[1755845824338,0.35580392,113150.0,113140.0,1.29481]
[1755845825337,0.07686,113150.0,113140.0,1.29481]
[1755845826335,0.35580392,113150.0,113140.0,1.29481]
[1755845826839,0.36571392,113150.0,113140.0,1.26065]
[1755845827036,0.36571392,113150.0,113140.0,1.29477]
[1755845828236,0.35580392,113150.0,113140.0,1.29477]
[1755845828439,0.35553802,113150.0,113140.0,1.29477]
[1755845828735,0.35553802,113150.0,113140.0,1.66185012]
[1755845828941,0.35553802,113150.0,113140.0,1.57344802]
[1755845829339,0.35553802,113150.0,113140.0,1.29477]
[1755845829536,0.35553802,113150.0,113140.0,1.59284159]
[1755845830634,0.35553802,113150.0,113140.0,1.31416357]
[1755845830832,0.35553802,113150.0,113140.0,1.59284159]
[1755845833441,0.35553802,113150.0,113140.0,1.65645385]
[1755845833943,0.35553802,113150.0,113140.0,1.37777583]
[1755845834139,0.35553802,113150.0,113140.0,1.65645385]
[1755845834341,0.35553802,113150.0,113140.0,1.37777583]
[1755845834548,0.35553802,113150.0,113140.0,1.59284159]
[1755845834936,0.35553802,113150.0,113140.0,1.65645385]
[1755845835849,0.34553802,113150.0,113140.0,1.65645385]
[1755845836345,0.34553802,113150.0,113140.0,1.59284159]
[1755845837151,0.35553802,113150.0,113140.0,1.31416357]
[1755845837747,0.35553802,113150.0,113140.0,1.59284159]
[1755845838647,0.35553802,113150.0,113140.0,1.31416357]
[1755845838845,0.35553802,113150.0,113140.0,0.95336357]
[1755845839048,0.36544802,113150.0,113140.0,0.95336357]
[1755845839248,0.36544802,113150.0,113140.0,1.01697583]
[1755845839450,0.36544802,113150.0,113140.0,1.01665583]
[1755845840252,0.36544802,113150.0,113140.0,0.20373583]
[1755845840448,0.36544802,113150.0,113140.0,0.95304357]
[1755845840849,0.34485802,113150.0,113140.0,0.95304357]
[1755845841050,0.35485802,113150.0,113140.0,0.95304357]
[1755845841452,0.33967802,113150.0,113140.0,0.95304357]
[1755845841953,0.31367802,113150.0,113140.0,1.23172159]
[1755845842653,0.035,113150.0,113140.0,1.23172159]
[1755845842852,0.31367802,113150.0,113140.0,1.23172159]
[1755845844155,0.32967802,113150.0,113140.0,1.23172159]
[1755845844453,0.33967802,113150.0,113140.0,1.23172159]
[1755845845049,0.33967802,113150.0,113140.0,0.95304357]
[1755845845248,0.33967802,113150.0,113140.0,1.23172159]
[1755845845445,0.33967802,113150.0,113140.0,0.95304357]
[1755845845650,0.33967802,113150.0,113140.0,1.23172159]
[1755845846246,0.35485802,113150.0,113140.0,0.95304357]
[1755845846453,0.35485802,113150.0,113140.0,1.01665583]
[1755845847853,0.35485802,113150.0,113140.0,0.95304357]
[1755845848443,0.35485802,113150.0,113140.0,0.10600357]
[1755845848644,0.64344604,113150.0,113140.0,0.10600357]
[1755845848849,1.00424604,113150.0,113140.0,0.91876357]
[1755845849058,1.00424604,113150.0,113140.0,0.95151357]
[1755845850257,1.00424604,113150.0,113140.0,0.91876357]
[1755845850652,1.00424604,113150.0,113140.0,0.95151357]
[1755845850857,1.00424604,113150.0,113140.0,0.10600357]
[1755845851057,1.00424604,113150.0,113140.0,0.13875357]
[1755845851657,1.00424604,113150.0,113140.0,0.10600357]
[1755845852258,1.00424604,113150.0,113140.0,0.13875357]
[1755845853455,1.00424604,113150.0,113140.0,0.10600357]
[1755845853761,1.00424604,113150.0,113140.0,0.09176357]
[1755845854164,1.25424604,113150.0,113140.0,0.03338]
[1755845855064,1.25424604,113150.0,113140.0,0.05668]
[1755845855365,0.69689,113150.0,113140.0,0.05668]
[1755845855562,1.25424604,113150.0,113140.0,0.05668]
[1755845855755,0.06488,113140.0,113130.0,0.03251]
[1755845855961,0.06488,113130.0,113120.0,0.17851292]
[1755845856161,0.98303604,113130.0,113120.0,0.17851292]
[1755845856363,0.98303604,113130.0,113120.0,0.11490066]
[1755845857065,0.98303604,113130.0,113120.0,0.05238066]
[1755845857565,1.26171406,113130.0,113110.0,0.04733]
[1755845857765,1.24653406,113120.0,113110.0,0.11941]
[1755845858062,1.24653406,113120.0,113110.0,0.05689]
[1755845858268,0.70461481,113120.0,113110.0,0.03251]
[1755845858559,0.70461481,113120.0,113110.0,0.00921]
[1755845858765,0.70461481,113120.0,113110.0,0.001]
[1755845859163,1.73351481,113120.0,113100.0,0.04817]
[1755845859362,0.70361481,113110.0,113100.0,0.11941]
[1755845860367,0.70361481,113110.0,113100.0,0.12241]
[1755845860560,0.7126546,113110.0,113100.0,0.12241]
[1755845861368,0.78479676,113110.0,113100.0,0.12241]
[1755845861771,0.78479676,113110.0,113100.0,0.12341]
[1755845861970,0.78479676,113110.0,113100.0,0.12241]
[1755845868567,0.42399676,113110.0,113100.0,0.12241]
[1755845868774,0.78479676,113110.0,113100.0,0.12241]
[1755845870278,1.06373157,113110.0,113100.0,0.003]
[1755845871577,1.06373157,113110.0,113100.0,0.002]
[1755845872077,0.03355,113100.0,113090.0,0.11745]
[1755845872274,0.98227962,113100.0,113090.0,0.11745]
[1755845872474,0.98227962,113100.0,113090.0,0.14097]
[1755845872876,1.79487962,113100.0,113090.0,0.05575]
[1755845873077,1.79487962,113100.0,113090.0,0.05675]
[1755845873276,1.79487962,113100.0,113090.0,0.08873]
[1755845873879,1.79487962,113100.0,113090.0,0.10279]
[1755845874175,1.79487962,113100.0,113090.0,0.14197]
[1755845875278,1.79487962,113100.0,113090.0,0.09593]
[1755845876480,1.79487962,113100.0,113090.0,0.02452]
[1755845876870,1.79487962,113100.0,113090.0,0.05616]
[1755845877184,1.79487962,113100.0,113090.0,0.12631]
[1755845881681,0.98227962,113100.0,113090.0,0.12631]
[1755845881881,1.79475962,113100.0,113090.0,0.12631]
[1755845882281,1.79485264,113100.0,113090.0,0.12631]
[1755845885187,2.07383396,113100.0,113090.0,0.12631]
[1755845885888,1.79485264,113100.0,113090.0,0.12631]
[1755845886086,2.07383396,113100.0,113090.0,0.12631]
[1755845886287,2.09375175,113100.0,113090.0,0.09433]
[1755845886484,2.07383396,113100.0,113090.0,0.08027]
[1755845887189,2.09375797,113100.0,113090.0,0.08027]
[1755845888787,2.09375797,113100.0,113090.0,0.001]
[1755845890994,0.06361,113080.0,113070.0,0.08547]
[1755845891196,0.98237264,113080.0,113070.0,0.11745]
[1755845891385,0.98237264,113080.0,113070.0,0.10899]
[1755845891581,0.98237264,113080.0,113070.0,0.14097]
[1755845892194,0.42441,113080.0,113070.0,0.14397]
[1755845892394,0.98237264,113080.0,113070.0,0.14397]
[1755845892896,0.98237264,113080.0,113070.0,0.14597]
[1755845893491,1.79465264,113080.0,113070.0,0.14597]
[1755845894586,1.79465264,113080.0,113070.0,0.11399]
[1755845894994,1.79465264,113080.0,113070.0,0.14597]
[1755845897891,0.62157264,113080.0,113070.0,0.14597]
[1755845906601,0.98237264,113080.0,113070.0,0.14597]
[1755845907202,1.26135396,113080.0,113070.0,0.005]
[1755845910405,1.26135396,113080.0,113070.0,0.003]
[1755845910794,0.61373264,113060.0,113050.0,1.32857427]
[1755845911306,0.61373264,113060.0,113050.0,1.35209427]
[1755845911507,0.61373264,113060.0,113050.0,1.32857427]
[1755845911713,0.61373264,113060.0,113050.0,1.35209427]
[1755845912015,0.62276083,113060.0,113050.0,1.35709427]
[1755845912717,0.62276083,113060.0,113050.0,0.59234427]
[1755845913216,0.61373264,113060.0,113050.0,0.59234427]
[1755845916223,0.05577,113060.0,113050.0,0.59234427]
[1755845916418,0.61373264,113060.0,113050.0,0.59234427]
[1755845920118,0.61373264,113060.0,113050.0,0.23154427]
[1755845920320,0.61373264,113060.0,113050.0,0.59234427]
[1755845929024,0.97453264,113060.0,113050.0,1.04330427]
[1755845929325,0.97453264,113060.0,113050.0,0.97969201]
[1755845930029,1.25351396,113060.0,113050.0,0.13372201]
[1755845930230,1.25351396,113060.0,113050.0,0.16701201]
[1755845930730,0.97453264,113060.0,113050.0,0.16701201]
[1755845930926,1.25351396,113060.0,113050.0,0.16701201]
[1755845932028,0.97453264,113060.0,113050.0,0.16701201]
[1755845933532,0.41657,113060.0,113050.0,0.16701201]
[1755845933728,0.97453264,113060.0,113050.0,0.16701201]
[1755845936234,0.61373264,113060.0,113050.0,0.16701201]
[1755845939937,0.61373264,113060.0,113050.0,0.23062427]
[1755845942838,0.61373264,113060.0,113050.0,0.16701201]
[1755845943536,0.58300264,113060.0,113050.0,0.23062427]
[1755845943739,0.58300264,113060.0,113050.0,0.50960559]
[1755845943740,0.57340264,113060.0,113050.0,0.50960559]
[1755845943934,0.57340264,113060.0,113050.0,0.59142427]
[1755845944626,0.61260264,113060.0,113050.0,0.59142427]
[1755845945629,0.61260264,113060.0,113050.0,1.40294427]
[1755845950436,0.61260264,113060.0,113050.0,1.37942427]
[1755845950640,0.61260264,113060.0,113050.0,1.40294427]
[1755845953639,0.61260264,113060.0,113050.0,1.04214427]
[1755845954133,0.61260264,113060.0,113050.0,0.23062427]
[1755845954438,0.61260264,113060.0,113050.0,1.00869427]
[1755845954644,0.61260264,113060.0,113050.0,1.04198427]
[1755845958545,0.61260264,113060.0,113050.0,0.97837201]
[1755845960146,0.61260264,113060.0,113050.0,0.95831]
[1755845961747,0.61260264,113060.0,113050.0,0.95835]
[1755845963445,0.05464,113060.0,113050.0,0.95835]
[1755845963645,0.61260264,113060.0,113050.0,0.95835]
[1755845968142,1.25238396,113060.0,113050.0,0.12347]
[1755845968441,1.25238396,113060.0,113050.0,0.09018]
[1755845968643,1.25238396,113060.0,113050.0,0.0601]
[1755845968847,1.27249212,113060.0,113050.0,0.03624]
[1755845969339,2.08356755,113060.0,113050.0,0.03624]
[1755845969542,2.08356755,113060.0,113050.0,0.09266]
[1755845969742,2.08356755,113060.0,113050.0,0.12255]
[1755845971251,2.06346396,113060.0,113050.0,0.12255]
[1755845975649,0.97340264,113060.0,113050.0,0.12255]
[1755845975850,0.04864,113060.0,113050.0,0.12255]
[1755845976055,0.61260264,113060.0,113050.0,0.14607]
[1755845982963,1.25238396,113060.0,113050.0,0.11312]
[1755845983165,1.25238396,113060.0,113050.0,0.14607]
[1755845986164,1.25238396,113060.0,113050.0,0.00504]
[1755845986766,1.25238396,113060.0,113050.0,0.02645]
[1755845987069,1.25238396,113060.0,113050.0,0.03576]
[1755845988170,0.97340264,113060.0,113050.0,0.12165]
[1755845989168,1.25238396,113060.0,113050.0,0.14517]
[1755845989866,0.89158396,113060.0,113050.0,0.14517]
[1755845990072,1.25238396,113060.0,113050.0,0.14517]
[1755845991172,1.25238396,113060.0,113050.0,0.11192]
[1755845991772,1.25238396,113060.0,113050.0,0.14517]
[1755845992174,1.27257411,113060.0,113050.0,0.14517]
[1755845993172,0.89158396,113060.0,113050.0,0.14517]
[1755845993372,0.61260264,113060.0,113050.0,0.14517]
[1755845994868,0.38524,113070.0,113050.0,1.81342818]
[1755845995071,0.33561132,113070.0,113060.0,0.42040132]
[1755845995268,0.01659,113070.0,113060.0,0.87046582]
[1755845995573,0.01659,113070.0,113060.0,0.84561358]
[1755845995574,0.27898132,113070.0,113060.0,0.84561358]
[1755845995776,0.27898132,113070.0,113060.0,0.85432525]
[1755845996265,0.27898132,113070.0,113060.0,0.79071299]
[1755845996968,0.27898132,113070.0,113060.0,0.78300132]
[1755845997375,0.27898132,113070.0,113060.0,0.50322]
[1755845997578,0.33561132,113070.0,113060.0,0.50322]
[1755845998377,0.33569892,113070.0,113060.0,0.50322]
[1755845998874,0.61476784,113070.0,113060.0,0.50322]
[1755845999976,0.33569892,113070.0,113060.0,0.50322]
[1755846000371,0.38524,113090.0,113070.0,0.03724]
[1755846000576,0.33569892,113080.0,113070.0,0.14142]
[1755846000775,0.33569892,113080.0,113070.0,0.1179]
[1755846001266,0.33569892,113080.0,113070.0,0.14142]
[1755846001469,0.05663,113080.0,113070.0,0.14142]
[1755846001669,0.33569892,113080.0,113070.0,0.14142]
[1755846001869,0.97556784,113080.0,113070.0,0.14142]
[1755846002068,1.78604784,113080.0,113070.0,0.00911]
[1755846002280,1.78604784,113080.0,113060.0,0.4404]
[1755846002473,0.59032784,113070.0,113060.0,0.50222]
[1755846002683,0.61476784,113070.0,113060.0,0.50222]
[1755846002980,0.61476784,113070.0,113060.0,0.08465]
[1755846003178,0.97556784,113070.0,113060.0,0.00911]
[1755846003373,0.97556784,113070.0,113060.0,0.03263]
[1755846003678,0.05663,113060.0,113050.0,0.13369226]
[1755846003881,0.69649892,113060.0,113050.0,0.0776]
[1755846004077,0.69549892,113060.0,113050.0,0.14146]
[1755846004577,0.69549892,113060.0,113050.0,0.05497]
[1755846004780,0.69549892,113060.0,113050.0,0.02356]
[1755846005081,0.69549892,113060.0,113050.0,0.12546]
[1755846005273,0.69549892,113060.0,113050.0,0.14146]
[1755846005584,0.69549892,113060.0,113050.0,0.14346]
[1755846006180,0.69549892,113060.0,113050.0,0.14446]
[1755846006883,1.78492784,113060.0,113050.0,0.00304]
[1755846007183,1.78492784,113060.0,113050.0,0.02534]
[1755846007383,1.78492784,113060.0,113050.0,0.03445]
[1755846007585,1.78492784,113060.0,113050.0,0.05708]
[1755846007884,1.50585892,113060.0,113050.0,0.05708]
[1755846008285,0.33469892,113060.0,113050.0,0.09033]
[1755846008584,0.69549892,113060.0,113050.0,0.10494]
[1755846008886,0.69549892,113060.0,113050.0,0.05708]
[1755846009382,0.69549892,113060.0,113050.0,0.09033]
[1755846010281,0.69549892,113060.0,113050.0,0.05708]
[1755846011588,0.69549892,113060.0,113050.0,0.03445]
[1755846011786,0.69549892,113060.0,113050.0,0.00304]
[1755846012087,0.97456784,113060.0,113050.0,0.00304]
[1755846014587,0.69549892,113060.0,113050.0,0.00304]
[1755846014802,0.69549892,113060.0,113050.0,0.02534]
[1755846014994,0.69549892,113060.0,113050.0,0.03445]
[1755846015389,0.69549892,113060.0,113050.0,0.05708]
[1755846016598,0.69549892,113060.0,113050.0,0.09033]
[1755846016896,0.69549892,113060.0,113050.0,0.12094]
[1755846018095,0.69549892,113060.0,113050.0,0.14446]
[1755846019697,0.69549892,113060.0,113050.0,0.12094]
[1755846019997,0.69549892,113060.0,113050.0,0.14446]
[1755846020996,0.69549892,113060.0,113050.0,0.05797]
[1755846021198,0.69549892,113060.0,113050.0,0.14424]
[1755846024905,0.69549892,113060.0,113050.0,0.11169]
[1755846025205,0.69549892,113060.0,113050.0,0.09687]
[1755846025712,0.97456784,113060.0,113050.0,0.00304]
[1755846025900,0.97456784,113060.0,113050.0,0.02656]
[1755846027802,0.69549892,113060.0,113050.0,0.02656]
[1755846028005,0.97456784,113060.0,113050.0,0.02656]
[1755846028204,0.99463031,113060.0,113050.0,0.02656]
[1755846028809,0.71556139,113060.0,113050.0,0.02656]
[1755846029512,0.96519031,113060.0,113030.0,0.04452958]
[1755846029703,0.58730784,113040.0,113030.0,0.05123958]
[1755846030111,0.61161784,113040.0,113030.0,0.05123958]
[1755846030314,0.61161784,113040.0,113030.0,0.07475958]
[1755846030613,0.61161784,113040.0,113030.0,0.09812958]
[1755846030815,0.61161784,113040.0,113030.0,0.10212958]
[1755846031612,0.62043728,113040.0,113030.0,0.10212958]
[1755846032210,0.62043728,113040.0,113030.0,0.10412958]
[1755846032410,0.62043728,113040.0,113030.0,0.13667958]
[1755846033210,0.62043728,113040.0,113030.0,0.15149958]
[1755846033413,0.69023901,113040.0,113030.0,0.15149958]
[1755846035409,0.69023901,113040.0,113030.0,0.11894958]
[1755846035715,0.69023901,113040.0,113030.0,0.15149958]
[1755846036513,0.69023901,113040.0,113030.0,0.16702958]
[1755846037115,0.68141957,113040.0,113030.0,0.16702958]
[1755846037319,0.68141957,113040.0,113030.0,0.52782958]
[1755846037915,0.40235065,113040.0,113030.0,0.52782958]
[1755846038112,0.37304065,113040.0,113030.0,0.52862958]
[1755846038511,0.37804065,113040.0,113030.0,0.52782958]
[1755846038713,0.30823892,113040.0,113030.0,0.52782958]
[1755846039118,0.33254892,113040.0,113030.0,0.52682958]
[1755846039313,0.61161784,113040.0,113030.0,0.49027958]
[1755846039520,0.61161784,113040.0,113030.0,0.13047958]
[1755846039822,0.61161784,113040.0,113030.0,0.16302958]
[1755846040520,0.61161784,113040.0,113030.0,0.52382958]
[1755846040921,0.61161784,113040.0,113030.0,0.16302958]
[1755846041422,0.61161784,113040.0,113030.0,0.52382958]
[1755846042718,0.68093842,113040.0,113030.0,0.52382958]
[1755846043319,0.67593842,113040.0,113030.0,0.52382958]
[1755846043520,0.68093842,113040.0,113030.0,0.52382958]
[1755846045930,0.61161784,113040.0,113030.0,0.50030958]
[1755846046127,0.30823892,113040.0,113030.0,0.52382958]
[1755846046425,0.30823892,113040.0,113030.0,0.67592944]
[1755846046426,0.30323892,113040.0,113030.0,0.67592944]
[1755846046921,0.29523892,113040.0,113030.0,0.65240944]
[1755846047328,0.29523892,113040.0,113030.0,0.67592944]
[1755846047928,0.27906892,113040.0,113030.0,0.67592944]
[1755846048321,0.02306,113050.0,113040.0,0.11617]
[1755846048525,0.29412892,113050.0,113040.0,0.94977]
[1755846048725,0.01506,113050.0,113040.0,0.94977]
[1755846048925,0.29412892,113050.0,113040.0,0.94977]
[1755846049124,0.30712892,113050.0,113040.0,0.94977]
[1755846049327,0.30212892,113050.0,113040.0,0.94977]
[1755846050130,0.02265,113060.0,113040.0,1.5070776]
[1755846050326,0.30212892,113060.0,113050.0,0.50049]
[1755846050924,0.30712892,113060.0,113050.0,0.50049]
[1755846051329,0.30712892,113060.0,113050.0,0.5889621]
[1755846051528,0.29412892,113060.0,113050.0,0.5889621]
[1755846051729,0.29412892,113060.0,113050.0,0.65257436]
[1755846051933,0.01506,113060.0,113050.0,0.65257436]
[1755846052132,0.29512892,113060.0,113050.0,0.65257436]
[1755846052331,0.29512892,113060.0,113050.0,0.5889621]
[1755846052528,0.29512892,113060.0,113050.0,0.56410226]
[1755846052732,0.29712892,113060.0,113050.0,0.65257436]
[1755846052932,0.28206892,113060.0,113050.0,0.5889621]
[1755846053541,0.28206892,113060.0,113050.0,0.60843745]
[1755846055246,0.28206892,113060.0,113050.0,0.51996535]
[1755846055447,0.003,113060.0,113050.0,0.60843745]
[1755846055640,0.28206892,113060.0,113050.0,0.58491745]
[1755846055938,0.003,113060.0,113050.0,0.58491745]
[1755846056841,0.05051,113090.0,113080.0,0.04724]
[1755846057042,0.33757892,113090.0,113080.0,1.31045]
[1755846058048,0.34157892,113090.0,113080.0,1.31045]
[1755846059544,0.34157892,113090.0,113080.0,0.50049]
[1755846060342,0.34237892,113090.0,113080.0,0.10743]
[1755846060542,0.70317892,113090.0,113080.0,0.04289287]
[1755846060745,0.34157892,113090.0,113080.0,0.12680287]
[1755846060943,0.34157892,113090.0,113080.0,0.15906287]
[1755846062146,0.34157892,113090.0,113080.0,0.11302287]
[1755846062743,0.34157892,113090.0,113080.0,0.15906287]
[1755846070654,0.34157892,113090.0,113080.0,0.51986287]
[1755846073846,0.34157892,113090.0,113080.0,0.15906287]
[1755846075558,0.34157892,113090.0,113080.0,0.51986287]
[1755846076850,0.34157892,113090.0,113080.0,0.15906287]
[1755846079354,0.34157892,113090.0,113080.0,0.12680287]
[1755846079860,0.34157892,113090.0,113080.0,0.15907287]
[1755846085160,0.3620799,113090.0,113080.0,0.15907287]
[1755846085356,0.34157892,113090.0,113080.0,0.96851287]
[1755846086268,0.36209198,113090.0,113080.0,0.96851287]
[1755846087168,0.36209198,113090.0,113080.0,0.15907287]
[1755846087462,0.36209198,113090.0,113080.0,0.02853287]
[1755846087463,0.72289198,113090.0,113080.0,0.02853287]
[1755846087663,0.72289198,113090.0,113080.0,0.05185287]
[1755846088457,0.72289198,113090.0,113080.0,0.07475287]
[1755846088866,0.72289198,113090.0,113080.0,0.10702287]
[1755846089259,0.72289198,113090.0,113080.0,0.12129287]
[1755846090065,0.72289198,113090.0,113080.0,0.13745287]
[1755846090257,0.36209198,113090.0,113080.0,0.13745287]
[1755846091869,0.33057198,113090.0,113080.0,0.13745287]
[1755846092063,0.33057198,113090.0,113080.0,0.94765287]
[1755846092368,0.28306892,113090.0,113080.0,0.94765287]
[1755846092862,0.30350514,113090.0,113080.0,1.30845287]
[1755846093055,0.28306892,113090.0,113080.0,1.30845287]
[1755846093956,0.28106892,113090.0,113080.0,1.30845287]
[1755846095763,0.28106892,113090.0,113080.0,1.39690127]
[1755846095956,0.002,113090.0,113080.0,1.39690127]
[1755846096465,0.002,113090.0,113080.0,1.46051353]
[1755846098160,0.002,113090.0,113080.0,1.45971353]
[1755846098460,0.2969688,113110.0,113090.0,0.1578794]
[1755846098660,0.33211939,113110.0,113100.0,0.92758]
[1755846098868,0.33997939,113110.0,113100.0,0.92758]
[1755846099169,0.3275488,113110.0,113100.0,0.92758]
[1755846100367,0.3285488,113110.0,113100.0,0.92758]
[1755846100767,0.3305488,113110.0,113100.0,0.92758]
[1755846100968,0.3404588,113110.0,113100.0,0.11826]
[1755846101164,0.3422588,113110.0,113100.0,0.08599]
[1755846101370,0.98312772,113110.0,113100.0,0.0229]
[1755846101769,1.00354853,113110.0,113100.0,0.0229]
[1755846102470,1.00354853,113110.0,113100.0,0.05556]
[1755846103078,1.07495434,113110.0,113100.0,0.11826]
[1755846103266,0.43508542,113110.0,113100.0,0.11826]
[1755846103466,0.39605473,113110.0,113100.0,0.11826]
[1755846105577,0.32384892,113110.0,113100.0,0.11826]
[1755846106467,0.33375892,113110.0,113100.0,0.11826]
[1755846116075,0.33375892,113110.0,113100.0,0.07172]
[1755846116679,0.33375892,113110.0,113100.0,0.11774]
[1755846118782,0.32384892,113110.0,113100.0,0.11774]
[1755846119881,0.33375892,113110.0,113100.0,0.11774]
[1755846121693,0.32384892,113110.0,113100.0,0.11774]
[1755846122393,0.31584892,113110.0,113100.0,0.11774]
[1755846122588,0.005,113110.0,113100.0,0.48604192]
[1755846122788,0.005,113110.0,113100.0,0.91045418]
[1755846124095,0.001,113110.0,113100.0,0.91145418]
[1755846124286,0.001,113110.0,113100.0,0.63238526]
[1755846125198,0.001,113110.0,113100.0,0.64119219]
[1755846125692,0.001,113110.0,113100.0,0.89119219]
[1755846125897,0.28826892,113120.0,113100.0,0.97081826]
[1755846126193,0.27906892,113120.0,113110.0,0.92768]
[1755846126497,0.65578892,113130.0,113120.0,0.11868]
[1755846126689,0.29498892,113130.0,113120.0,0.5678974]
[1755846127089,0.30298892,113130.0,113120.0,0.5678974]
[1755846127286,0.64906892,113140.0,113120.0,0.5862648]
[1755846127493,0.40015,113140.0,113130.0,0.11868]
[1755846127794,0.67921892,113140.0,113130.0,0.92764]
[1755846128399,0.68818078,113140.0,113130.0,0.92764]
[1755846128598,0.67921892,113140.0,113130.0,0.92764]
[1755846129396,0.68021892,113140.0,113130.0,0.92764]
[1755846130097,0.68121892,113140.0,113130.0,0.92764]
[1755846133500,0.01935,113140.0,113130.0,1.3768496]
[1755846133703,0.01672,113140.0,113130.0,1.3768496]
[1755846133898,0.0148,113140.0,113130.0,1.3768496]
[1755846134099,0.002,113140.0,113130.0,1.3768496]
[1755846134502,0.28106892,113140.0,113130.0,1.3768496]
[1755846134699,0.28106892,113140.0,113130.0,1.28844]
[1755846134899,0.29386892,113140.0,113130.0,1.3768496]
[1755846136107,0.29386892,113140.0,113130.0,1.28844]
[1755846136302,0.30186892,113140.0,113130.0,1.28844]
[1755846136807,0.29386892,113140.0,113130.0,1.28844]
[1755846137009,0.29386892,113140.0,113130.0,1.3768494]
[1755846138709,0.29386892,113140.0,113130.0,1.28844]
[1755846139208,0.30186892,113140.0,113130.0,1.28844]
[1755846139403,0.30186892,113140.0,113130.0,1.3768494]
[1755846139705,0.29386892,113140.0,113130.0,1.3768494]
[1755846141102,0.29386892,113140.0,113130.0,1.28844]
[1755846141308,0.30186892,113140.0,113130.0,1.28844]
[1755846142409,0.30186892,113140.0,113130.0,1.3768494]
[1755846143010,0.29386892,113140.0,113130.0,1.3768494]
[1755846143210,0.28106892,113140.0,113130.0,1.3768494]
[1755846144003,0.002,113140.0,113130.0,1.44747255]
[1755846144200,0.28106892,113140.0,113130.0,1.44747255]
[1755846144610,0.28006892,113140.0,113130.0,1.44747255]
[1755846145812,0.27906892,113140.0,113130.0,1.44747255]
[1755846148011,0.0442,113150.0,113130.0,1.44747255]
[1755846148218,0.27906892,113140.0,113130.0,1.53657915]
[1755846149318,0.0442,113150.0,113130.0,1.62498855]
[1755846149520,0.27906892,113140.0,113130.0,1.55423855]
[1755846149921,0.27906892,113140.0,113130.0,1.62498855]
[1755846150521,0.27906892,113140.0,113130.0,1.44816975]
[1755846151322,0.27906892,113140.0,113130.0,1.35976315]
[1755846151525,0.27906892,113140.0,113130.0,1.44817215]
[1755846152123,0.35384892,113150.0,113140.0,0.11858]
[1755846152521,0.06558,113150.0,113140.0,0.2069816]
[1755846152825,0.06558,113150.0,113140.0,0.5677816]
[1755846152826,0.035,113150.0,113140.0,0.5677816]
[1755846153027,0.035,113150.0,113140.0,0.57661918]
[1755846153222,0.036,113150.0,113140.0,0.57661918]
[1755846153824,0.037,113150.0,113140.0,0.57661918]
[1755846155325,0.037,113150.0,113140.0,0.64023144]
[1755846155526,0.037,113150.0,113140.0,0.91930036]
[1755846156326,0.035,113150.0,113140.0,0.91930036]
[1755846157123,0.68948892,113170.0,113160.0,0.04783]
[1755846157322,0.69844352,113170.0,113160.0,0.9269]
[1755846157630,0.71875119,113170.0,113160.0,0.9269]
[1755846158324,0.72946119,113170.0,113160.0,0.9269]
[1755846158525,0.73046119,113170.0,113160.0,0.89417]
[1755846159123,0.73246119,113170.0,113160.0,0.9269]
[1755846159324,0.73246119,113170.0,113160.0,0.11858]
[1755846160234,0.73166119,113170.0,113160.0,0.02352]
[1755846160427,0.04528,113160.0,113150.0,0.89417]
[1755846160628,0.08378,113160.0,113150.0,0.9269]
[1755846161026,0.36284892,113160.0,113150.0,0.9269]
[1755846161230,0.07387,113160.0,113150.0,0.9269]
[1755846161433,0.35293892,113160.0,113150.0,0.9269]
[1755846161633,0.35393892,113160.0,113150.0,0.9269]
[1755846162233,0.35493892,113160.0,113150.0,0.9269]
[1755846164834,0.32148892,113160.0,113150.0,0.9269]
[1755846165024,0.35493892,113160.0,113150.0,0.11858]
[1755846165229,0.35493892,113160.0,113150.0,0.92678]
[1755846167836,0.35493892,113160.0,113150.0,1.28758]
[1755846171236,0.35373892,113160.0,113150.0,1.28758]
[1755846171433,0.30562892,113160.0,113150.0,1.28758]
[1755846172237,0.30370892,113160.0,113150.0,1.28758]
[1755846175342,0.30370892,113160.0,113150.0,1.3759738]
[1755846177142,0.30370892,113160.0,113150.0,1.43958606]
[1755846177442,0.002,113160.0,113150.0,1.43958606]
[1755846177832,0.002,113160.0,113150.0,1.3759738]
[1755846178330,0.002,113160.0,113150.0,1.43958606]
[1755846178536,0.36098442,113180.0,113150.0,2.00338074]
[1755846178736,0.35203989,113180.0,113170.0,0.12125]
[1755846178941,0.30578892,113180.0,113170.0,1.30972859]
[1755846179140,0.33751892,113180.0,113170.0,1.30972859]
[1755846179340,0.33751892,113180.0,113170.0,1.39810669]
[1755846179842,0.06145,113180.0,113170.0,1.39810669]
[1755846180043,0.34051892,113180.0,113170.0,1.39810669]
[1755846180340,0.34051892,113180.0,113170.0,1.30972859]
[1755846180542,0.34371892,113180.0,113170.0,1.30972859]
[1755846180744,0.34371892,113180.0,113170.0,1.39810669]
[1755846180949,0.34371892,113180.0,113170.0,1.30972859]
[1755846181336,0.30878892,113180.0,113170.0,1.30972859]
[1755846181537,0.34051892,113180.0,113170.0,1.30972859]
[1755846181739,0.34251892,113180.0,113170.0,1.30972859]
[1755846182646,0.31078892,113180.0,113170.0,1.30972859]
[1755846183144,0.31078892,113180.0,113170.0,1.39810679]
[1755846183947,0.30366892,113180.0,113170.0,1.39810679]
[1755846184143,0.30166892,113180.0,113170.0,1.30972859]
[1755846184344,0.30266892,113180.0,113170.0,1.39810679]
[1755846185843,0.0236,113180.0,113170.0,1.39810679]
[1755846186047,0.30266892,113180.0,113170.0,1.39810679]
[1755846187237,0.30166892,113180.0,113170.0,1.39810679]
[1755846187441,0.30066892,113180.0,113170.0,1.39810679]
[1755846187744,0.72412809,113190.0,113170.0,1.57485929]
[1755846187949,0.74252809,113190.0,113180.0,0.12125]
[1755846188152,0.38752,113190.0,113180.0,0.12125]
[1755846188349,0.3608,113190.0,113180.0,0.2096204]
[1755846189143,0.63986892,113190.0,113180.0,0.2096204]
[1755846189348,0.69519892,113190.0,113180.0,0.12125]
[1755846189947,0.69831892,113190.0,113180.0,0.12125]
[1755846190152,0.70151892,113190.0,113180.0,0.12125]
[1755846190353,0.71737892,113190.0,113180.0,0.12125]
[1755846190745,0.43831,113190.0,113180.0,0.12125]